fUSD/lending_fUSD_20241024
["ID","MTS","AMOUNT","RATE_DAILY","PERIOD"]
[340769530,1729789864324,-500.0,0.00062988,120]
[340769531,1729789864334,-500.0,0.00062988,120]
[340769532,1729789864346,-500.0,0.00062988,120]
[340769533,1729789864365,-238.15167032,0.00062988,120]
[340769534,1729789864382,-500.0,0.00062988,120]
[340769535,1729789864400,-606.71,0.00062988,120]
[340769536,1729789864418,-500.0,0.00062988,120]
[340769537,1729789864436,-500.0,0.00062988,120]
[340769538,1729789864453,-579.46762981,0.00062988,120]
[340769539,1729789864470,-936.19,0.00062988,120]
[340769540,1729789864484,-500.0,0.00062988,120]
[340769541,1729789864502,-500.0,0.00062988,120]
[340769542,1729789864523,-255.14605246,0.00062988,120]
[340769543,1729789864538,-734.31,0.00062988,120]
[340769544,1729789864552,-716.22,0.00062988,120]
[340769545,1729789864571,-907.88,0.00062988,120]
[340769546,1729789864587,-599.13346202,0.00062988,120]
[340769547,1729789864601,-500.0,0.00062988,120]
[340769548,1729789864615,-4062.48,0.00062988,120]
[340769549,1729789864631,-2098.06,0.00062988,120]
[340769550,1729789864646,-522.68,0.00062988,120]
[340769551,1729789864662,-500.0,0.00062988,120]
[340769552,1729789864676,-500.0,0.00062988,120]
[340769553,1729789864690,-500.0,0.00062988,120]
[340769554,1729789864704,-916.23,0.00062988,120]
[340769555,1729789864719,-500.0,0.00062988,120]
[340769556,1729789864733,-500.0,0.00062988,120]
[340769557,1729789864749,-500.0,0.00062988,120]
[340769558,1729789864764,-500.0,0.00062988,90]
[340769559,1729789864778,-1292.02,0.00062988,120]
[340769560,1729789864793,-500.0,0.00062988,120]
[340769561,1729789864808,-500.0,0.00062988,120]
[340769562,1729789864823,-752.16,0.00062988,120]
[340769563,1729789864837,-2005.65,0.00062988,120]
[340769564,1729789864852,-500.0,0.00062988,120]
[340769565,1729789864866,-500.0,0.00062988,120]
[340769566,1729789864881,-500.0,0.00062988,120]
[340769567,1729789864896,-703.71,0.00062988,120]
[340769568,1729789864911,-4070.25,0.00062988,120]
[340769569,1729789864925,-273.73818123,0.00062988,120]
[340769570,1729789864940,-1381.94,0.00062988,60]
[340769571,1729789864954,-2576.75,0.00062988,120]
[340769572,1729789864970,-1900.97,0.00062988,120]
[340769573,1729789864985,-500.0,0.00062988,120]
[340769574,1729789864995,-2139.75,0.00062988,120]
[340769575,1729789865004,-500.0,0.00062988,120]
[340769576,1729789865013,-500.0,0.00062988,120]
[340769577,1729789865024,-500.0,0.00062988,120]
[340769578,1729789865033,-586.14,0.00062988,120]
[340769579,1729789865043,-500.0,0.00062988,120]
[340769580,1729789865052,-351.7291405,0.00062988,120]
[340769581,1729789865062,-1414.56,0.00062988,120]
[340769582,1729789865071,-500.0,0.00062988,120]
[340769583,1729789865080,-635.98,0.00062988,120]
[340769584,1729789865093,-563.98,0.00062988,120]
[340769585,1729789865103,-437.00485794,0.00062988,120]
[340769586,1729789865111,-1006.97,0.00062988,120]
[340769587,1729789865121,-503.79034222,0.00062989,120]
[340769588,1729789865131,-213.49435158,0.00062989,120]
[340769589,1729789865142,-509.01290641,0.00062989,120]
[340769590,1729789865151,-481.13485957,0.00062989,120]
[340769591,1729789865161,-501.74509218,0.00062989,120]
[340769592,1729789865172,-498.30835359,0.00062989,120]
[340769593,1729789865182,-500.0,0.00062989,120]
[340769594,1729789865191,-500.0,0.00062989,120]
[340769595,1729789865201,-579.94702362,0.00062989,120]
[340769596,1729789865210,-501.47082259,0.00062989,120]
[340769597,1729789865219,-502.18934387,0.00062989,120]
[340769598,1729789865464,-500.0,0.00062989,120]
[340769599,1729789865478,-500.0,0.00062989,120]
[340769600,1729789865489,-500.0,0.00062989,120]
[340769601,1729789865498,-501.6612993,0.00062989,120]
[340769602,1729789865508,-458.63636896,0.00062989,120]
[340769603,1729789865517,-503.88904868,0.00062989,120]
[340769604,1729789865527,-503.34766185,0.00062989,120]
[340769605,1729789865535,-504.3282923,0.00062989,120]
[340769606,1729789865545,-508.48275172,0.00062989,120]
[340769607,1729789865554,-502.00591203,0.00062989,120]
[340769608,1729789865563,-502.29869671,0.00062989,120]
[340769609,1729789865573,-502.68688899,0.00062989,120]
[340769610,1729789865582,-502.0499542,0.00062989,120]
[340769611,1729789865592,-500.0,0.00062989,120]
[340769612,1729789865600,-502.41173364,0.00062989,120]
[340769613,1729789865609,-503.72863326,0.00062989,120]
[340769614,1729789865618,-509.77837662,0.00062989,30]
[340769615,1729789865627,-504.66141216,0.00062989,120]
[340769616,1729789865636,-508.31523706,0.00062989,120]
[340769617,1729789865646,-610.51608761,0.00062989,120]
[340769618,1729789865656,-503.7906561,0.00062989,120]
[340769619,1729789865666,-499.97468524,0.00062989,120]
[340769620,1729789865675,-503.06646742,0.00062989,120]
[340769621,1729789865684,-500.0,0.00062989,120]
[340769622,1729789865693,-500.0,0.00062989,120]
[340769623,1729789865702,-1003.67812534,0.00062989,120]
[340769624,1729789865711,-504.19632499,0.00062989,120]
[340769625,1729789865721,-503.05963733,0.00062989,120]
[340769626,1729789865731,-504.41269207,0.00062989,120]
[340769627,1729789865741,-500.0,0.00062989,120]
[340769628,1729789865751,-500.0,0.00062989,120]
[340769629,1729789865762,-504.23690688,0.00062989,120]
[340769630,1729789865771,-501.94723504,0.00062989,120]
[340769631,1729789865780,-503.30879013,0.00062989,120]
[340769632,1729789865789,-502.3225525,0.00062989,120]
[340769633,1729789865798,-522.19115,0.00062989,120]
[340769634,1729789865807,-506.9024406,0.00062989,120]
[340769635,1729789865816,-500.0,0.00062989,120]
[340769636,1729789865827,-506.54537971,0.00062989,120]
[340769637,1729789865840,-503.84630813,0.00062989,120]
[340769638,1729789865848,-502.47274275,0.00062989,120]
[340769639,1729789865857,-504.46896516,0.00062989,120]
[340769640,1729789865866,-502.51166852,0.00062989,120]
[340769641,1729789865875,-500.0,0.00062989,120]
[340769642,1729789865884,-502.49958928,0.00062989,120]
[340769643,1729789865893,-502.55944085,0.00062989,120]
[340769644,1729789865902,-500.85935361,0.00062989,120]
[340769645,1729789865911,-501.14960229,0.00062989,120]
[340769646,1729789865920,-501.46770317,0.00062989,120]
[340769647,1729789865930,-501.62299493,0.00062989,120]
[340769648,1729789865939,-500.0,0.00062989,120]
[340769649,1729789865948,-500.0,0.00062989,120]
[340769650,1729789865957,-500.0,0.00062989,120]
[340769651,1729789865966,-500.0,0.00062989,120]
[340769652,1729789865975,-500.0,0.00062989,120]
[340769653,1729789865985,-500.0,0.00062989,120]
[340769654,1729789865994,-500.0,0.00062989,120]
[340769655,1729789866003,-500.0,0.00062989,120]
[340769656,1729789866011,-501.61845612,0.00062989,120]
[340769657,1729789866020,-500.0,0.00062989,120]
[340769658,1729789866029,-501.0765823,0.00062989,120]
[340769659,1729789866038,-504.05854464,0.00062989,120]
[340769660,1729789866047,-502.84947574,0.00062989,120]
[340769661,1729789866056,-596.35712817,0.00062989,120]
[340769662,1729789866066,-500.0,0.00062989,120]
[340769663,1729789866078,-500.0,0.00062989,120]
[340769664,1729789866091,-285.44811082,0.00062989,120]
[340769665,1729789866101,-500.0,0.00062989,120]
[340769666,1729789866110,-502.40492578,0.00062989,120]
[340769667,1729789866119,-503.60353971,0.00062989,120]
[340769668,1729789866128,-501.92817626,0.00062989,120]
[340769669,1729789866138,-502.62820688,0.00062989,120]
[340769670,1729789866147,-511.24537219,0.00062989,120]
[340769671,1729789866156,-504.21112612,0.00062989,120]
[340769672,1729789866166,-501.42216958,0.00062989,120]
[340769673,1729789866175,-527.27745356,0.00062989,120]
[340769674,1729789866184,-505.92272318,0.00062989,120]
[340769675,1729789866193,-500.0,0.00062989,120]
[340769676,1729789866202,-509.3792123,0.00062989,120]
[340769677,1729789866211,-504.19509055,0.00062989,120]
[340769678,1729789866221,-500.0,0.00062989,120]
[340769679,1729789866232,-517.87776819,0.00062989,120]
[340769680,1729789866243,-512.68737557,0.00062989,120]
[340769681,1729789866253,-193.39353408,0.00062989,120]
[340769682,1729789866262,-510.30530109,0.00062989,120]
[340769683,1729789866272,-500.0,0.00062989,120]
[340769684,1729789866281,-500.0,0.00062989,120]
[340769685,1729789866290,-502.2173569,0.00062989,120]
[340769686,1729789866300,-511.83542949,0.00062989,120]
[340769687,1729789866309,-504.79161225,0.00062989,120]
[340769688,1729789866318,-500.0,0.00062989,120]
[340769689,1729789866330,-303.54606983,0.00062989,120]
[340769690,1729789866339,-503.58563812,0.00062989,120]
[340769691,1729789866348,-500.0,0.00062989,120]
[340769692,1729789866357,-503.75504299,0.00062989,120]
[340769693,1729789866366,-500.0,0.00062989,120]
[340769694,1729789866375,-500.0,0.00062989,120]
[340769695,1729789866384,-500.0,0.00062989,16]
[340769696,1729789866393,-502.74441494,0.00062989,120]
[340769697,1729789866403,-500.0,0.00062989,120]
[340769698,1729789866411,-440.93929923,0.00062989,120]
[340769699,1729789866421,-500.8329527,0.00062989,120]
[340769700,1729789866430,-500.0,0.00062989,120]
[340769701,1729789866440,-299.73079032,0.00062989,120]
[340769702,1729789866452,-500.0,0.00062989,120]
[340769703,1729789866463,-500.0,0.00062997,120]
[340769704,1729789866473,-500.0,0.00062997,120]
[340769705,1729789866482,-500.0,0.00062997,120]
[340769706,1729789866491,-659.56,0.00062997,120]
[340769707,1729789866500,-500.0,0.00062997,120]
[340769708,1729789866510,-500.0,0.00062997,120]
[340769709,1729789866518,-876.2,0.00062997,120]
[340769710,1729789866528,-500.0,0.00062997,120]
[340769711,1729789866537,-913.65,0.00062997,120]
[340769712,1729789866546,-500.0,0.00062997,120]
[340769713,1729789866554,-545.44,0.00062997,120]
[340769714,1729789866563,-1060.66,0.00062997,120]
[340769715,1729789866573,-562.05,0.00062997,120]
[340769716,1729789866582,-510.57,0.00062997,120]
[340769717,1729789866591,-766.77,0.00062997,120]
[340769718,1729789866601,-500.0,0.00062997,120]
[340769719,1729789866610,-948.63,0.00062997,120]
[340769720,1729789866618,-500.0,0.00062997,120]
[340769721,1729789866627,-500.0,0.00062997,120]
[340769722,1729789866636,-500.0,0.00062997,120]
[340769723,1729789866645,-803.8,0.00062997,120]
[340769724,1729789866654,-500.0,0.00062997,120]
[340769725,1729789866663,-5209.5,0.00062997,120]
[340769726,1729789866672,-1019.39,0.00062997,120]
[340769727,1729789866682,-1562.94,0.00062997,120]
[340769728,1729789866691,-500.0,0.00062997,120]
[340769729,1729789866701,-500.0,0.00062997,120]
[340769730,1729789866711,-1233.15,0.00062997,120]
[340769731,1729789866720,-510.22,0.00062997,120]
[340769732,1729789866730,-1364.5,0.00062997,120]
[340769733,1729789866739,-500.0,0.00062997,120]
[340769734,1729789866749,-500.0,0.00062997,120]
[340769735,1729789866758,-1393.17,0.00062997,120]
[340769736,1729789866768,-1914.61,0.00062997,120]
[340769737,1729789866777,-500.0,0.00062997,120]
[340769738,1729789866787,-1696.6,0.00062997,120]
[340769739,1729789866796,-1440.78,0.00062997,120]
[340769740,1729789866806,-1577.79,0.00062997,120]
[340769741,1729789866816,-851.28,0.00062997,120]
[340769742,1729789866827,-500.0,0.00062997,120]
[340769743,1729789866837,-500.0,0.00062997,120]
[340769744,1729789866846,-500.0,0.00062997,120]
[340769745,1729789866855,-500.0,0.00062997,120]
[340769746,1729789866864,-500.0,0.00062997,120]
[340769747,1729789866873,-606.71,0.00062997,120]
[340769748,1729789866882,-500.0,0.00062997,120]
[340769749,1729789866891,-500.0,0.00062997,120]
[340769750,1729789866901,-500.0,0.00062997,120]
[340769751,1729789866910,-5430.51,0.00062997,120]
[340769752,1729789866919,-500.0,0.00062997,120]
[340769753,1729789866928,-500.0,0.00062997,120]
[340769754,1729789866937,-212.06933366,0.00062997,120]
[340769755,1729789866946,-500.0,0.00062997,120]
[340769756,1729789866956,-716.22,0.00062997,120]
[340769757,1729789866965,-500.0,0.00062997,120]
[340769758,1729789866974,-4062.48,0.00062997,120]
[340769759,1729789866984,-1429.13,0.00062997,120]
[340769760,1729789866993,-500.0,0.00062997,120]
[340769761,1729789867002,-2173.08,0.00062997,120]
[340769762,1729789867011,-2173.08,0.00062997,120]
[340769763,1729789867020,-500.0,0.00062997,120]
[340769764,1729789867029,-500.0,0.00062997,120]
[340769765,1729789867038,-1067.54,0.00062997,120]
[340769766,1729789867047,-1202.54,0.00062997,120]
[340769767,1729789867057,-500.0,0.00062997,120]
[340769768,1729789867067,-500.0,0.00062997,120]
[340769769,1729789867077,-500.0,0.00062997,90]
[340769770,1729789867086,-1292.02,0.00062997,120]
[340769771,1729789867097,-1292.02,0.00062997,120]
[340769772,1729789867107,-390.73522425,0.00062997,120]
[340769773,1729789867116,-752.16,0.00062997,120]
[340769774,1729789867125,-2005.65,0.00062997,120]
[340769775,1729789867136,-500.0,0.00062997,120]
[340769776,1729789867145,-500.0,0.00062997,120]
[340769777,1729789867154,-1939.08,0.00062997,120]
[340769778,1729789867164,-703.71,0.00062997,120]
[340769779,1729789867173,-4070.25,0.00062997,120]
[340769780,1729789867183,-4070.25,0.00062997,120]
[340769781,1729789867192,-2593.06,0.00062997,120]
[340769782,1729789867202,-1381.94,0.00062997,60]
[340769783,1729789867212,-2576.75,0.00062997,120]
[340769784,1729789867221,-2576.75,0.00062997,120]
[340769785,1729789867231,-1900.97,0.00062997,120]
[340769786,1729789867240,-500.0,0.00062997,120]
[340769787,1729789867249,-500.0,0.00062997,120]
[340769788,1729789867258,-500.0,0.00062997,120]
[340769789,1729789867267,-572.99,0.00062997,21]
[340769790,1729789867276,-500.0,0.00062997,120]
[340769791,1729789867286,-572.99,0.00062997,21]
[340769792,1729789867295,-500.0,0.00062997,120]
[340769793,1729789867305,-1414.56,0.00062997,120]
[340769794,1729789867314,-500.0,0.00062997,120]
[340769795,1729789867323,-500.0,0.00062997,120]
[340769796,1729789867332,-563.98,0.00062997,120]
[340769797,1729789867341,-563.98,0.00062997,120]
[340769798,1729789867350,-1006.97,0.00062997,120]
[340769799,1729789867359,-1006.97,0.00062997,120]
[340769800,1729789867368,-500.0,0.00062998,120]
[340769801,1729789867377,-500.0,0.00062998,120]
[340769802,1729789867386,-545.23924721,0.00062998,120]
[340769803,1729789867395,-500.0,0.00062998,120]
[340769804,1729789867403,-500.0,0.00062998,120]
[340769805,1729789867412,-500.0,0.00062998,120]
[340769806,1729789867422,-500.0,0.00062998,120]
[340769807,1729789867431,-500.0,0.00062998,120]
[340769808,1729789867440,-500.0,0.00062998,120]
[340769809,1729789867450,-500.0,0.00062998,120]
[340769810,1729789867459,-649.50555766,0.00062998,120]
[340769811,1729789867468,-500.0,0.00062998,120]
[340769812,1729789867477,-500.0,0.00062998,120]
[340769813,1729789867487,-500.0,0.00062998,120]
[340769814,1729789867496,-500.0,0.00062998,120]
[340769815,1729789867505,-500.0,0.00062998,120]
[340769816,1729789867514,-500.0,0.00062998,120]
[340769817,1729789867523,-500.0,0.00062998,120]
[340769818,1729789867532,-556.09,0.00062998,120]
[340769819,1729789867541,-500.0,0.00062998,120]
[340769820,1729789867550,-500.0,0.00062998,120]
[340769821,1729789867559,-556.09,0.00062998,120]
[340769822,1729789867568,-556.09,0.00062998,120]
[340769823,1729789867578,-556.09,0.00062998,120]
[340769824,1729789867588,-500.0,0.00062998,120]
[340769825,1729789867597,-500.0,0.00062998,120]
[340769826,1729789867606,-500.0,0.00062998,120]
[340769827,1729789867615,-500.0,0.00062998,120]
[340769828,1729789867623,-500.0,0.00062998,120]
[340769829,1729789867632,-500.0,0.00062998,120]
[340769830,1729789867641,-500.0,0.00062998,120]
[340769831,1729789867650,-500.0,0.00062998,120]
[340769832,1729789867659,-500.0,0.00062998,120]
[340769833,1729789867668,-500.0,0.00062998,120]
[340769834,1729789867678,-500.0,0.00062998,120]
[340769835,1729789867688,-500.0,0.00062998,120]
[340769836,1729789867697,-500.0,0.00062998,120]
[340769837,1729789867706,-659.56,0.00062998,120]
[340769838,1729789867716,-500.0,0.00062998,120]
[340769839,1729789867725,-659.56,0.00062998,120]
[340769840,1729789867735,-541.88882287,0.00062998,120]
[340769841,1729789867744,-659.56,0.00062998,120]
[340769842,1729789867753,-659.56,0.00062998,120]
[340769843,1729789867763,-500.0,0.00062998,120]
[340769844,1729789867772,-500.0,0.00062998,120]
[340769845,1729789867782,-500.0,0.00062998,120]
[340769846,1729789867791,-500.0,0.00062998,120]
[340769847,1729789867801,-500.0,0.00062998,120]
[340769848,1729789867810,-500.0,0.00062998,120]
[340769849,1729789867819,-500.0,0.00062998,120]
[340769850,1729789867830,-500.0,0.00062998,120]
[340769851,1729789867839,-876.2,0.00062998,120]
[340769852,1729789867848,-876.2,0.00062998,120]
[340769853,1729789867857,-876.2,0.00062998,120]
[340769854,1729789867866,-876.2,0.00062998,120]
[340769855,1729789867876,-500.0,0.00062998,120]
[340769856,1729789867885,-500.0,0.00062998,120]
[340769857,1729789867895,-500.0,0.00062998,120]
[340769858,1729789867904,-500.0,0.00062998,120]
[340769859,1729789867914,-533.36,0.00062998,120]
[340769860,1729789867923,-533.36,0.00062998,120]
[340769861,1729789867932,-533.36,0.00062998,120]
[340769862,1729789867941,-533.36,0.00062998,120]
[340769863,1729789867951,-500.0,0.00062998,120]
[340769864,1729789867961,-500.0,0.00062998,120]
[340769865,1729789867970,-500.0,0.00062998,120]
[340769866,1729789867979,-508.45494248,0.00062998,120]
[340769867,1729789867989,-913.65,0.00062998,120]
[340769868,1729789867999,-500.0,0.00062998,120]
[340769869,1729789868008,-500.0,0.00062998,120]
[340769870,1729789868017,-913.65,0.00062998,120]
[340769871,1729789868026,-500.0,0.00062998,120]
[340769872,1729789868036,-913.65,0.00062998,120]
[340769873,1729789868045,-500.0,0.00062998,120]
[340769874,1729789868055,-913.65,0.00062998,120]
[340769875,1729789868064,-545.44,0.00062998,120]
[340769876,1729789868075,-545.44,0.00062998,120]
[340769877,1729789868085,-545.44,0.00062998,120]
[340769878,1729789868097,-545.44,0.00062998,120]
[340769879,1729789868106,-1073.79,0.00062998,120]
[340769880,1729789868116,-1073.79,0.00062998,120]
[340769881,1729789868126,-1073.79,0.00062998,120]
[340769882,1729789868137,-1073.79,0.00062998,120]
[340769883,1729789868147,-1060.66,0.00062998,120]
[340769884,1729789868156,-1060.66,0.00062998,120]
[340769885,1729789868168,-1060.66,0.00062998,120]
[340769886,1729789868177,-1060.66,0.00062998,120]
[340769887,1729789868186,-2831.04,0.00062998,120]
[340769888,1729789868195,-2831.04,0.00062998,120]
[340769889,1729789868205,-2831.04,0.00062998,120]
[340769890,1729789868214,-2831.04,0.00062998,120]
[340769891,1729789868223,-2819.06,0.00062998,120]
[340769892,1729789868233,-2819.06,0.00062998,120]
[340769893,1729789868242,-562.05,0.00062998,120]
[340769894,1729789868251,-2819.06,0.00062998,120]
[340769895,1729789868261,-562.05,0.00062998,120]
[340769896,1729789868271,-2819.06,0.00062998,120]
[340769897,1729789868280,-562.05,0.00062998,120]
[340769898,1729789868289,-562.05,0.00062998,120]
[340769899,1729789868299,-510.57,0.00062998,120]
[340769900,1729789868308,-510.57,0.00062998,120]
[340769901,1729789868318,-510.57,0.00062998,120]
[340769902,1729789868329,-510.57,0.00062998,120]
[340769903,1729789868339,-940.51,0.00062998,120]
[340769904,1729789868348,-940.51,0.00062998,120]
[340769905,1729789868358,-766.77,0.00062998,120]
[340769906,1729789868367,-940.51,0.00062998,120]
[340769907,1729789868377,-766.77,0.00062998,120]
[340769908,1729789868386,-940.51,0.00062998,120]
[340769909,1729789868396,-766.77,0.00062998,120]
[340769910,1729789868405,-766.77,0.00062998,120]
[340769911,1729789868414,-4410.82,0.00062998,120]
[340769912,1729789868424,-4410.82,0.00062998,120]
[340769913,1729789868433,-4410.82,0.00062998,120]
[340769914,1729789868443,-500.0,0.00062998,120]
[340769915,1729789868562,-948.63,0.00062998,120]
[340769916,1729789868593,-500.0,0.00062998,120]
[340769917,1729789868603,-948.63,0.00062998,120]
[340769918,1729789868612,-4410.82,0.00062998,120]
[340769919,1729789868622,-948.63,0.00062998,120]
[340769920,1729789868631,-948.63,0.00062998,120]
[340769921,1729789868640,-500.0,0.00062998,120]
[340769922,1729789868650,-500.0,0.00062998,120]
[340769923,1729789868659,-500.0,0.00062998,120]
[340769924,1729789868668,-500.0,0.00062998,120]
[340769925,1729789868678,-890.88,0.00062998,120]
[340769926,1729789868688,-890.88,0.00062998,120]
[340769927,1729789868698,-292.21394657,0.00062998,120]
[340769928,1729789868707,-890.88,0.00062998,120]
[340769929,1729789868717,-890.88,0.00062998,120]
[340769930,1729789868727,-500.0,0.00062998,120]
[340769931,1729789868737,-500.0,0.00062998,120]
[340769932,1729789868747,-500.0,0.00062998,120]
[340769933,1729789868756,-500.0,0.00062998,120]
[340769934,1729789868766,-500.0,0.00062998,120]
[340769935,1729789868775,-500.0,0.00062998,120]
[340769936,1729789868784,-500.0,0.00062998,120]
[340769937,1729789868794,-500.0,0.00062998,120]
[340769938,1729789868804,-803.8,0.00062998,120]
[340769939,1729789868813,-803.8,0.00062998,120]
[340769940,1729789868824,-803.8,0.00062998,120]
[340769941,1729789868834,-803.8,0.00062998,120]
[340769942,1729789868843,-500.0,0.00062998,120]
[340769943,1729789868852,-500.0,0.00062998,120]
[340769944,1729789868862,-500.0,0.00062998,120]
[340769945,1729789868871,-172.15230596,0.00062998,120]
[340769946,1729789868881,-2625.4,0.00062998,120]
[340769947,1729789868891,-5209.5,0.00062998,120]
[340769948,1729789868900,-2625.4,0.00062998,120]
[340769949,1729789868910,-5209.5,0.00062998,120]
[340769950,1729789868919,-2625.4,0.00062998,120]
[340769951,1729789868928,-5209.5,0.00062998,120]
[340769952,1729789868939,-2625.4,0.00062998,120]
[340769953,1729789868949,-5209.5,0.00062998,120]
[340769954,1729789868959,-1019.39,0.00062998,120]
[340769955,1729789868968,-1019.39,0.00062998,120]
[340769956,1729789868978,-1019.39,0.00062998,120]
[340769957,1729789868987,-1019.39,0.00062998,120]
[340769958,1729789868997,-1562.94,0.00062998,120]
[340769959,1729789869007,-1562.94,0.00062998,120]
[340769960,1729789869016,-1562.94,0.00062998,120]
[340769961,1729789869026,-1562.94,0.00062998,120]
[340769962,1729789869035,-500.0,0.00062998,120]
[340769963,1729789869045,-500.0,0.00062998,120]
[340769964,1729789869055,-500.0,0.00062998,120]
[340769965,1729789869064,-500.0,0.00062998,120]
[340769966,1729789869074,-534.05,0.00062998,120]
[340769967,1729789869086,-534.05,0.00062998,120]
[340769968,1729789869100,-534.05,0.00062998,120]
[340769969,1729789869110,-534.05,0.00062998,120]
[340769970,1729789869119,-2799.56,0.00062998,120]
[340769971,1729789869129,-2799.56,0.00062998,120]
[340769972,1729789869139,-2799.56,0.00062998,120]
[340769973,1729789869149,-2799.56,0.00062998,120]
[340769974,1729789869158,-500.0,0.00062998,120]
[340769975,1729789869169,-500.0,0.00062998,120]
[340769976,1729789869179,-500.0,0.00062998,120]
[340769977,1729789869188,-474.16896024,0.00062998,120]
[340769978,1729789869198,-1233.15,0.00062998,120]
[340769979,1729789869207,-1233.15,0.00062998,120]
[340769980,1729789869217,-1233.15,0.00062998,120]
[340769981,1729789869226,-1233.15,0.00062998,120]
[340769982,1729789869235,-510.22,0.00062998,120]
[340769983,1729789869246,-510.22,0.00062998,120]
[340769984,1729789869256,-510.22,0.00062998,120]
[340769985,1729789869265,-510.22,0.00062998,120]
[340769986,1729789869275,-998.71,0.00062998,120]
[340769987,1729789869284,-998.71,0.00062998,120]
[340769988,1729789869294,-998.71,0.00062998,120]
[340769989,1729789869304,-998.71,0.00062998,120]
[340769990,1729789869314,-1364.5,0.00062998,120]
[340769991,1729789869326,-1364.5,0.00062998,120]
[340769992,1729789869337,-1364.5,0.00062998,120]
[340769993,1729789869346,-1364.5,0.00062998,120]
[340769994,1729789869356,-500.0,0.00062998,120]
[340769995,1729789869366,-500.0,0.00062998,120]
[340769996,1729789869375,-500.0,0.00062998,120]
[340769997,1729789869385,-500.0,0.00062998,120]
[340769998,1729789869394,-500.0,0.00062998,120]
[340769999,1729789869404,-500.0,0.00062998,120]
[340770000,1729789869414,-500.0,0.00062998,120]
[340770001,1729789869424,-500.0,0.00062998,120]
[340770002,1729789869434,-1375.64,0.00062998,120]
[340770003,1729789869444,-1375.64,0.00062998,120]
[340770004,1729789869453,-1375.64,0.00062998,120]
[340770005,1729789869463,-1375.64,0.00062998,120]
[340770006,1729789869472,-500.0,0.00062998,120]
[340770007,1729789869481,-500.0,0.00062998,120]
[340770008,1729789869491,-1393.17,0.00062998,120]
[340770009,1729789869500,-500.0,0.00062998,120]
[340770010,1729789869510,-1393.17,0.00062998,120]
[340770011,1729789869519,-500.0,0.00062998,120]
[340770012,1729789869528,-1393.17,0.00062998,120]
[340770013,1729789869538,-1393.17,0.00062998,120]
[340770014,1729789869548,-500.0,0.00062998,120]
[340770015,1729789869558,-500.0,0.00062998,120]
[340770016,1729789869567,-500.0,0.00062998,120]
[340770017,1729789869581,-500.0,0.00062998,120]
[340770018,1729789869592,-500.0,0.00062998,120]
[340770019,1729789869601,-500.0,0.00062998,120]
[340770020,1729789869611,-500.0,0.00062998,120]
[340770021,1729789869620,-500.0,0.00062998,120]
[340770022,1729789869630,-500.0,0.00062998,120]
[340770023,1729789869640,-951.4,0.00062998,7]
[340770024,1729789869650,-951.4,0.00062998,7]
[340770025,1729789869660,-951.4,0.00062998,7]
[340770026,1729789869670,-951.4,0.00062998,7]
[340770027,1729789869679,-1914.61,0.00062998,120]
[340770028,1729789869688,-1914.61,0.00062998,120]
[340770029,1729789869698,-1914.61,0.00062998,120]